fUSD/lending_fUSD_20240318
["ID","MTS","AMOUNT","RATE_DAILY","PERIOD"]
[319431855,1710736290730,-500.0,0.00031506,4]
[319431856,1710736290757,-500.0,0.00031506,4]
[319431857,1710736290783,-523.09,0.00031506,4]
[319431858,1710736290806,-193.17619641,0.00031506,4]
[319431859,1710736290831,-3465.75,0.00031506,4]
[319431860,1710736290855,-500.0,0.00031506,4]
[319431861,1710736290878,-500.0,0.00031506,4]
[319431862,1710736290894,-3439.16,0.00031506,4]
[319431863,1710736290907,-1239.79,0.00031506,4]
[319431864,1710736290919,-500.0,0.00031506,4]
[319431865,1710736290932,-865.02,0.00031506,4]
[319431866,1710736290944,-770.0,0.00031506,4]
[319431867,1710736290955,-500.0,0.00031506,4]
[319431868,1710736290967,-1050.75,0.00031506,4]
[319431869,1710736290978,-500.0,0.00031506,4]
[319431870,1710736290992,-639.93,0.00031506,4]
[319431871,1710736291005,-500.0,0.00031506,4]
[319431872,1710736291016,-3922.62,0.00031506,4]
[319431873,1710736291027,-500.0,0.00031506,4]
[319431874,1710736291039,-500.0,0.00031506,4]
[319431875,1710736291050,-500.0,0.00031506,4]
[319431876,1710736291061,-500.0,0.00031506,4]
[319431877,1710736291073,-953.43,0.00031506,4]
[319431878,1710736291085,-611.87,0.00031506,4]
[319431879,1710736291097,-500.0,0.00031506,4]
[319431880,1710736291108,-798.65,0.00031506,4]
[319431881,1710736291119,-2710.57,0.00031506,4]
[319431882,1710736291131,-500.0,0.00031506,4]
[319431883,1710736291142,-2948.74,0.00031506,4]
[319431884,1710736291154,-342.8673249,0.00031506,4]
[319431885,1710736291166,-500.0,0.00031506,4]
[319431886,1710736291177,-501.29926247,0.00031506,4]
[319431887,1710736291189,-539.71,0.00031506,4]
[319431888,1710736291201,-500.0,0.00031506,4]
[319431889,1710736291214,-500.0,0.00031506,4]
[319431890,1710736291225,-500.0,0.00031506,4]
[319431891,1710736291236,-500.0,0.00031506,4]
[319431892,1710736291250,-500.0,0.00031506,4]
[319431893,1710736291261,-500.0,0.00031506,4]
[319431894,1710736291273,-500.0,0.00031506,4]
[319431895,1710736291284,-500.0,0.00031506,4]
[319431896,1710736291295,-1200.43,0.00031506,4]
[319431897,1710736291307,-500.0,0.00031506,4]
[319431898,1710736291318,-500.0,0.00031506,4]
[319431899,1710736291329,-361.6058239,0.00031506,4]
[319431900,1710736291341,-500.0,0.00031506,4]
[319431901,1710736291352,-500.0,0.00031506,4]
[319431902,1710736291363,-500.0,0.00031506,4]
[319431903,1710736291375,-500.0,0.00031506,4]
[319431904,1710736291386,-593.8,0.00031506,4]
[319431905,1710736291397,-646.93,0.00031506,4]
[319431906,1710736291408,-3040.38,0.00031506,4]
[319431907,1710736291420,-912.86,0.00031506,4]
[319431908,1710736291430,-521.56,0.00031506,4]
[319431909,1710736291442,-500.0,0.00031506,4]
[319431910,1710736291453,-500.0,0.00031506,4]
[319431911,1710736291463,-2075.71,0.00031506,4]
[319431912,1710736291475,-500.0,0.00031506,4]
[319431913,1710736291485,-1026.81,0.00031506,4]
[319431914,1710736291498,-500.0,0.00031506,4]
[319431915,1710736291509,-788.56,0.00031506,4]
[319431916,1710736291520,-500.0,0.00031506,4]
[319431917,1710736291531,-500.0,0.00031506,4]
[319431918,1710736291542,-500.0,0.00031506,4]
[319431919,1710736291553,-615.18,0.00031506,4]
[319431920,1710736291567,-500.0,0.00031506,4]
[319431921,1710736291578,-500.0,0.00031506,4]
[319431922,1710736291589,-1506.09,0.00031506,4]
[319431923,1710736291600,-500.0,0.00031506,4]
[319431924,1710736291611,-500.0,0.00031506,4]
[319431925,1710736291622,-500.0,0.00031506,4]
[319431926,1710736291634,-4428.75,0.00031506,2]
[319431927,1710736291645,-500.0,0.00031506,4]
[319431928,1710736291655,-500.0,0.00031506,4]
[319431929,1710736291667,-1442.43,0.00031506,4]
[319431930,1710736291678,-500.0,0.00031506,4]
[319431931,1710736291689,-515.09567995,0.00031506,4]
[319431932,1710736291701,-4584.29,0.00031506,4]
[319431933,1710736291712,-1419.83,0.00031506,4]
[319431934,1710736291723,-1416.16,0.00031506,4]
[319431935,1710736291735,-500.0,0.00031506,4]
[319431936,1710736291750,-1501.08,0.00031506,4]
[319431937,1710736291761,-500.0,0.00031506,4]
[319431938,1710736291773,-500.0,0.00031506,4]
[319431939,1710736291784,-1326.91,0.00031506,4]
[319431940,1710736291795,-500.0,0.00031506,4]
[319431941,1710736291807,-500.0,0.00031506,4]
[319431942,1710736291822,-500.0,0.00031506,4]
[319431943,1710736291835,-1157.88,0.00031506,4]
[319431944,1710736291848,-500.0,0.00031506,4]
[319431945,1710736291861,-500.0,0.00031506,4]
[319431946,1710736291874,-522.83,0.00031506,4]
[319431947,1710736291887,-1901.89,0.00031506,4]
[319431948,1710736291900,-884.27,0.00031506,4]
[319431949,1710736291914,-500.0,0.00031506,4]
[319431950,1710736291928,-718.57,0.00031506,4]
[319431951,1710736291941,-500.0,0.00031506,4]
[319431952,1710736291954,-500.0,0.00031506,4]
[319431953,1710736291967,-500.0,0.00031506,4]
[319431954,1710736291980,-626.44,0.00031506,4]
[319431955,1710736291993,-1481.56,0.00031506,4]
[319431956,1710736292006,-500.0,0.00031506,4]
[319431957,1710736292020,-820.19,0.00031506,4]
[319431958,1710736292032,-616.04,0.00031506,4]
[319431959,1710736292046,-661.6,0.00031506,4]
[319431960,1710736292059,-807.78,0.00031506,4]
[319431961,1710736292072,-576.56,0.00031506,4]
[319431962,1710736292085,-500.0,0.00031506,4]
[319431963,1710736292098,-500.0,0.00031506,4]
[319431964,1710736292111,-1258.08,0.00031506,4]
[319431965,1710736292125,-500.0,0.00031506,4]
[319431966,1710736292139,-922.75,0.00031506,4]
[319431967,1710736292152,-500.0,0.00031506,4]
[319431968,1710736292164,-500.0,0.00031506,4]
[319431969,1710736292177,-500.0,0.00031506,4]
[319431970,1710736292190,-1859.01,0.00031506,4]
[319431971,1710736292203,-998.14,0.00031506,4]
[319431972,1710736292217,-500.0,0.00031506,4]
[319431973,1710736292231,-712.78,0.00031506,4]
[319431974,1710736292247,-3134.02,0.00031506,4]
[319431975,1710736292260,-720.74,0.00031506,4]
[319431976,1710736292273,-500.0,0.00031506,4]
[319431977,1710736292286,-835.55,0.00031506,4]
[319431978,1710736292300,-341.30857639,0.00031506,4]
[319431979,1710736292314,-794.41,0.00031506,4]
[319431980,1710736292328,-3743.94,0.00031506,4]
[319431981,1710736292342,-500.0,0.00031506,4]
[319431982,1710736292511,-642.05,0.00031506,4]
[319431983,1710736292526,-456.94717901,0.00031506,4]
[319431984,1710736292535,-1113.65,0.00031506,4]
[319431985,1710736292545,-589.6,0.00031506,4]
[319431986,1710736292555,-500.0,0.00031506,4]
[319431987,1710736292565,-500.0,0.00031506,4]
[319431988,1710736292575,-633.04,0.00031506,4]
[319431989,1710736292585,-512.73,0.00031506,4]
[319431990,1710736292595,-774.64,0.00031506,4]
[319431991,1710736292605,-1524.04,0.00031506,4]
[319431992,1710736292615,-1898.65,0.00031506,4]
[319431993,1710736292625,-1586.83,0.00031506,4]
[319431994,1710736292635,-500.0,0.00031506,4]
[319431995,1710736292645,-500.0,0.00031506,4]
[319431996,1710736292654,-500.0,0.00031506,4]
[319431997,1710736292664,-833.34,0.00031506,4]
[319431998,1710736292673,-1329.2,0.00031506,4]
[319431999,1710736292683,-500.0,0.00031506,4]
[319432000,1710736292693,-501.93,0.00031506,4]
[319432001,1710736292703,-500.0,0.00031506,4]
[319432002,1710736292713,-574.74,0.00031506,4]
[319432003,1710736292723,-500.0,0.00031506,4]
[319432004,1710736292734,-500.0,0.00031506,4]
[319432005,1710736292753,-500.0,0.00031506,4]
[319432006,1710736292765,-899.79,0.00031506,4]
[319432007,1710736292776,-500.0,0.00031506,4]
[319432008,1710736292787,-836.63,0.00031506,4]
[319432009,1710736292798,-663.74,0.00031506,4]
[319432010,1710736292808,-1143.03,0.00031506,4]
[319432011,1710736292818,-500.0,0.00031506,4]
[319432012,1710736292829,-1917.2,0.00031506,4]
[319432013,1710736292839,-1716.33,0.00031506,4]
[319432014,1710736292849,-1304.54,0.00031506,4]
[319432015,1710736292858,-500.0,0.00031506,4]
[319432016,1710736292868,-705.47,0.00031506,4]
[319432017,1710736292878,-500.0,0.00031506,4]
[319432018,1710736292887,-794.56,0.00031506,4]
[319432019,1710736292896,-500.0,0.00031506,4]
[319432020,1710736292906,-500.0,0.00031506,4]
[319432021,1710736292916,-546.09217821,0.00031506,4]
[319432022,1710736292926,-2333.6,0.00031506,4]
[319432023,1710736292936,-758.7,0.00031506,4]
[319432024,1710736292946,-588.98,0.00031506,4]
[319432025,1710736292957,-560.65,0.00031506,4]
[319432026,1710736292966,-1061.17,0.00031506,4]
[319432027,1710736292976,-500.0,0.00031506,4]
[319432028,1710736292985,-500.0,0.00031506,4]
[319432029,1710736292999,-1095.12,0.00031506,4]
[319432030,1710736293008,-500.0,0.00031506,4]
[319432031,1710736293018,-432.49528951,0.00031506,4]
[319432032,1710736293028,-2145.95,0.00031506,4]
[319432033,1710736293038,-500.0,0.00031506,4]
[319432034,1710736293048,-1627.27,0.00031506,4]
[319432035,1710736293057,-500.0,0.00031506,4]
[319432036,1710736293067,-500.0,0.00031506,4]
[319432037,1710736293076,-500.0,0.00031506,4]
[319432038,1710736293086,-500.0,0.00031506,4]
[319432039,1710736293095,-2012.26,0.00031506,4]
[319432040,1710736293105,-1352.76,0.00031506,4]
[319432041,1710736293114,-500.0,0.00031506,2]
[319432042,1710736293123,-537.95,0.00031506,4]
[319432043,1710736293132,-500.0,0.00031506,4]
[319432044,1710736293142,-503.08813728,0.00031506,4]
[319432045,1710736293151,-2747.25,0.00031506,4]
[319432046,1710736293160,-606.33,0.00031506,4]
[319432047,1710736293170,-324.37781254,0.00031506,4]
[319432048,1710736293180,-500.0,0.00031506,4]
[319432049,1710736293189,-500.0,0.00031506,4]
[319432050,1710736293198,-500.0,0.00031506,4]
[319432051,1710736293208,-500.0,0.00031506,4]
[319432052,1710736293217,-501.86601103,0.00031506,4]
[319432053,1710736293226,-500.0,0.00031506,4]
[319432054,1710736293236,-500.0,0.00031506,4]
[319432055,1710736293248,-554.01,0.00031506,4]
[319432056,1710736293257,-807.58,0.00031506,4]
[319432057,1710736293266,-2956.82,0.00031506,4]
[319432058,1710736293275,-500.0,0.00031506,4]
[319432059,1710736293284,-500.0,0.00031506,4]
[319432060,1710736293294,-500.0,0.00031506,4]
[319432061,1710736293303,-1607.18,0.00031506,4]
[319432062,1710736293312,-403.05529964,0.00031506,4]
[319432063,1710736293322,-500.0,0.00031506,4]
[319432064,1710736293330,-1221.54,0.00031506,4]
[319432065,1710736293339,-500.0,0.00031506,4]
[319432066,1710736293348,-1838.23,0.00031506,4]
[319432067,1710736293357,-1026.01,0.00031506,4]
[319432068,1710736293366,-500.0,0.00031506,4]
[319432069,1710736293375,-842.1,0.00031506,4]
[319432070,1710736293385,-512.31,0.00031506,4]
[319432071,1710736293394,-500.0,0.00031506,4]
[319432072,1710736293403,-831.26,0.00031506,4]
[319432073,1710736293413,-1157.32,0.00031506,4]
[319432074,1710736293422,-1448.23,0.00031506,4]
[319432075,1710736293431,-500.0,0.00031506,4]
[319432076,1710736293440,-556.38,0.00031506,4]
[319432077,1710736293449,-500.0,0.00031506,4]
[319432078,1710736293458,-1287.24,0.00031506,4]
[319432079,1710736293467,-500.0,0.00031506,4]
[319432080,1710736293476,-1436.69,0.00031506,4]
[319432081,1710736293486,-1335.54,0.00031506,4]
[319432082,1710736293495,-500.0,0.00031506,4]
[319432083,1710736293505,-1968.76,0.00031506,4]
[319432084,1710736293514,-799.94,0.00031506,4]
[319432085,1710736293523,-1597.09,0.00031506,4]
[319432086,1710736293532,-500.0,0.00031506,4]
[319432087,1710736293542,-500.0,0.00031506,4]
[319432088,1710736293551,-500.0,0.00031506,4]
[319432089,1710736293560,-632.08,0.00031506,4]
[319432090,1710736293569,-681.46,0.00031506,4]
[319432091,1710736293578,-1138.91,0.00031506,4]
[319432092,1710736293587,-1427.1,0.00031506,4]
[319432093,1710736293595,-809.76,0.00031506,4]
[319432094,1710736293605,-500.0,0.00031506,4]
[319432095,1710736293615,-1229.86,0.00031506,4]
[319432096,1710736293625,-691.68,0.00031506,4]
[319432097,1710736293634,-500.0,0.00031506,4]
[319432098,1710736293643,-2635.68,0.00031506,4]
[319432099,1710736293652,-500.0,0.00031506,4]
[319432100,1710736293661,-500.0,0.00031506,4]
[319432101,1710736293671,-500.0,0.00031506,4]
[319432102,1710736293680,-500.0,0.00031506,4]
[319432103,1710736293690,-788.73,0.00031506,4]
[319432104,1710736293700,-500.0,0.00031506,4]
[319432105,1710736293710,-500.0,0.00031506,4]
[319432106,1710736293720,-500.0,0.00031506,4]
[319432107,1710736293730,-500.0,0.00031506,4]
[319432108,1710736293743,-500.0,0.00031506,4]
[319432109,1710736293753,-500.0,0.00031506,4]
[319432110,1710736293762,-500.0,0.00031506,4]
[319432111,1710736293771,-2115.38,0.00031506,4]
[319432112,1710736293782,-500.0,0.00031506,4]
[319432113,1710736293791,-1520.72,0.00031506,4]
[319432114,1710736293802,-1607.09,0.00031506,4]
[319432115,1710736293811,-500.0,0.00031506,4]
[319432116,1710736293821,-500.0,0.00031506,4]
[319432117,1710736293831,-1832.55,0.00031506,4]
[319432118,1710736293841,-500.0,0.00031506,4]
[319432119,1710736293850,-824.57,0.00031506,4]
[319432120,1710736293859,-500.0,0.00031506,4]
[319432121,1710736293868,-1581.71,0.00031506,4]
[319432122,1710736293879,-500.0,0.00031506,4]
[319432123,1710736293888,-583.42,0.00031506,4]
[319432124,1710736293898,-1212.73,0.00031506,4]
[319432125,1710736293907,-1404.3,0.00031506,4]
[319432126,1710736293917,-416.50908934,0.00031506,4]
[319432127,1710736293926,-24025.87,0.00031506,4]
[319432128,1710736293936,-500.0,0.00031506,4]
[319432129,1710736293945,-518.66251467,0.00031506,4]
[319432130,1710736293954,-2851.25,0.00031506,4]
[319432131,1710736293963,-2546.72,0.00031506,4]
[319432132,1710736293972,-500.0,0.00031506,4]
[319432133,1710736293981,-2287.3,0.00031506,4]
[319432134,1710736293990,-500.0,0.00031506,4]
[319432135,1710736294001,-500.0,0.00031506,4]
[319432136,1710736294010,-647.58,0.00031506,4]
[319432137,1710736294019,-585.33,0.00031506,4]
[319432138,1710736294029,-1053.54,0.00031506,4]
[319432139,1710736294038,-500.0,0.00031506,4]
[319432140,1710736294047,-1503.64,0.00031506,4]
[319432141,1710736294056,-500.0,0.00031506,4]
[319432142,1710736294066,-1183.08,0.00031506,4]
[319432143,1710736294075,-500.0,0.00031506,4]
[319432144,1710736294084,-554.14,0.00031506,4]
[319432145,1710736294094,-2122.6,0.00031506,4]
[319432146,1710736294103,-500.0,0.00031506,4]
[319432147,1710736294113,-500.0,0.00031506,4]
[319432148,1710736294122,-513.85,0.00031506,4]
[319432149,1710736294131,-1088.26,0.00031506,4]
[319432150,1710736294141,-1355.29,0.00031506,4]
[319432151,1710736294150,-1081.54,0.00031506,4]
[319432152,1710736294159,-602.31,0.00031506,4]
[319432153,1710736294168,-500.0,0.00031506,4]
[319432154,1710736294177,-16800.01,0.00031506,4]
[319432155,1710736294186,-500.0,0.00031506,4]
[319432156,1710736294196,-732.67,0.00031506,4]
[319432157,1710736294205,-500.0,0.00031506,4]
[319432158,1710736294214,-534.54797064,0.00031506,4]
[319432159,1710736294224,-500.0,0.00031506,4]
[319432160,1710736294234,-500.0,0.00031506,4]
[319432161,1710736294244,-500.0,0.00031506,4]
[319432162,1710736294252,-244.79086324,0.00031506,4]
[319432163,1710736294261,-500.0,0.00031506,4]
[319432164,1710736294270,-500.0,0.00031506,4]
[319432165,1710736294280,-500.0,0.00031506,4]
[319432166,1710736294289,-500.0,0.00031506,4]
[319432167,1710736294299,-742.96,0.00031506,4]
[319432168,1710736294308,-875.28,0.00031506,4]
[319432169,1710736294317,-500.0,0.00031506,4]
[319432170,1710736294326,-500.0,0.00031506,4]
[319432171,1710736294335,-500.0,0.00031506,4]
[319432172,1710736294344,-1382.05,0.00031506,4]
[319432173,1710736294353,-500.0,0.00031506,4]
[319432174,1710736294361,-9617.26,0.00031506,4]
[319432175,1710736294370,-632.75,0.00031506,4]
[319432176,1710736294379,-514.87282366,0.00031506,4]
[319432177,1710736294388,-500.0,0.00031506,4]
[319432178,1710736294397,-523.3,0.00031506,4]
[319432179,1710736294406,-500.0,0.00031506,4]
[319432180,1710736294415,-9955.07,0.00031506,4]
[319432181,1710736294424,-1242.28,0.00031506,4]
[319432182,1710736294433,-500.0,0.00031506,4]
[319432183,1710736294442,-500.0,0.00031506,4]
[319432184,1710736294452,-815.39,0.00031506,4]
[319432185,1710736294461,-463.87365718,0.00031506,4]
[319432186,1710736294471,-606.68,0.00031506,4]
[319432187,1710736294485,-456.95313228,0.00031506,4]
[319432188,1710736294496,-2827.35,0.00031506,4]
[319432189,1710736294505,-500.0,0.00031506,4]
[319432190,1710736294514,-455.1281599,0.00031506,4]
[319432191,1710736294524,-584.4,0.00031506,4]
[319432192,1710736294534,-500.0,0.00031506,4]
[319432193,1710736294543,-500.0,0.00031506,4]
[319432194,1710736294553,-351.03320178,0.00031506,4]
[319432195,1710736294563,-2844.9,0.00031506,4]
[319432196,1710736294573,-500.0,0.00031506,4]
[319432197,1710736294583,-918.65,0.00031506,4]
[319432198,1710736294592,-2329.09,0.00031506,4]
[319432199,1710736294601,-500.0,0.00031506,4]
[319432200,1710736294611,-500.0,0.00031506,4]
[319432201,1710736294621,-500.0,0.00031506,4]
[319432202,1710736294630,-2657.41,0.00031506,4]
[319432203,1710736294640,-500.0,0.00031506,4]
[319432204,1710736294649,-5715.22,0.00031506,4]
[319432205,1710736294659,-500.0,0.00031506,4]
[319432206,1710736294668,-500.0,0.00031506,4]
[319432207,1710736294678,-1178.39,0.00031506,4]
[319432208,1710736294688,-293.15857556,0.00031506,4]
[319432209,1710736294698,-500.0,0.00031506,4]
[319432210,1710736294708,-500.0,0.00031506,4]
[319432211,1710736294717,-1030.3,0.00031506,4]
[319432212,1710736294727,-508.60165805,0.00031506,4]
[319432213,1710736294738,-7010.64,0.00031506,4]
[319432214,1710736294751,-511.16262684,0.00031506,4]
[319432215,1710736294760,-500.0,0.00031506,4]
[319432216,1710736294770,-795.31,0.00031506,4]
[319432217,1710736294778,-500.0,0.00031506,4]
[319432218,1710736294788,-500.0,0.00031506,4]
[319432219,1710736294798,-514.66202315,0.00031506,4]
[319432220,1710736294807,-647.9,0.00031506,4]
[319432221,1710736294817,-500.0,0.00031506,4]
[319432222,1710736294828,-756.1,0.00031506,4]
[319432223,1710736294838,-301.46613079,0.00031506,4]
[319432224,1710736294848,-500.0,0.00031506,4]
[319432225,1710736294857,-500.0,0.00031506,4]
[319432226,1710736294867,-500.0,0.00031506,4]
[319432227,1710736294877,-1213.71,0.00031506,4]
[319432228,1710736294887,-3112.49,0.00031506,4]
[319432229,1710736294896,-500.0,0.00031506,4]
[319432230,1710736294906,-533.85976812,0.00031506,4]
[319432231,1710736294917,-500.0,0.00031506,4]
[319432232,1710736294927,-16099.23,0.00031506,4]
[319432233,1710736294937,-500.0,0.00031506,4]
[319432234,1710736294946,-500.0,0.00031506,4]
[319432235,1710736294956,-1067.48,0.00031506,4]
[319432236,1710736294965,-1085.99,0.00031506,4]
[319432237,1710736294975,-500.0,0.00031506,4]
[319432238,1710736294984,-500.0,0.00031506,4]
[319432239,1710736294994,-500.0,0.00031506,4]
[319432240,1710736295003,-500.0,0.00031506,4]
[319432241,1710736295013,-7279.53,0.00031506,4]
[319432242,1710736295024,-3639.26,0.00031506,4]
[319432243,1710736295034,-4937.08,0.00031506,4]
[319432244,1710736295044,-500.0,0.00031506,4]
[319432245,1710736295054,-14656.9,0.00031506,4]
[319432246,1710736295065,-526.23508067,0.00031506,4]
[319432247,1710736295077,-500.0,0.00031506,4]
[319432248,1710736295088,-500.0,0.00031506,4]
[319432249,1710736295099,-1119.07,0.00031506,4]
[319432250,1710736295110,-500.0,0.00031506,4]
[319432251,1710736295120,-714.97,0.00031506,4]
[319432252,1710736295131,-500.0,0.00031506,4]
[319432253,1710736295141,-500.0,0.00031506,4]
[319432254,1710736295151,-3778.15,0.00031506,4]
[319432255,1710736295161,-500.0,0.00031506,4]
[319432256,1710736295171,-500.0,0.00031506,4]
[319432257,1710736295181,-2442.22,0.00031506,4]
[319432258,1710736295192,-915.55,0.00031506,4]
[319432259,1710736295203,-500.0,0.00031506,4]
[319432260,1710736295214,-500.0,0.00031506,4]
[319432261,1710736295225,-517.89709583,0.00031506,4]
[319432262,1710736295235,-2039.35,0.00031506,4]
[319432263,1710736295247,-500.0,0.00031506,4]
[319432264,1710736295257,-1590.31,0.00031506,4]
[319432265,1710736295267,-500.0,0.00031506,2]
[319432266,1710736295278,-500.0,0.00031506,4]
[319432267,1710736295288,-2078.76,0.00031506,4]
[319432268,1710736295298,-765.76,0.00031506,4]
[319432269,1710736295308,-2024.35,0.00031506,4]
[319432270,1710736295318,-500.0,0.00031506,4]
[319432271,1710736295328,-3546.12,0.00031506,4]
[319432272,1710736295339,-500.0,0.00031506,4]
[319432273,1710736295350,-500.0,0.00031506,4]
[319432274,1710736295360,-500.0,0.00031506,4]
[319432275,1710736295370,-155.0,0.00031508,2]
[319432276,1710736295381,-150.49823158,0.00031511,7]
[319432277,1710736295391,-1100.0,0.000316,4]
[319432278,1710736295401,-3129.489323,0.000316,2]
[319432279,1710736295411,-3535.040487,0.000316,2]
[319432280,1710736295421,-172.04149,0.00031631,2]
[319432281,1710736295431,-470.7,0.00031644,2]
[319432282,1710736295440,-11025.91593504,0.0003165,2]
[319432283,1710736295449,-5000.0,0.0003166,21]
[319432284,1710736295459,-5000.0,0.0003166,31]
[319432285,1710736295469,-5000.0,0.0003166,41]
[319432286,1710736295479,-5000.0,0.0003166,51]
[319432287,1710736295489,-5000.0,0.0003166,61]
[319432288,1710736295500,-5130.60366262,0.0003166,28]
[319432289,1710736295510,-5000.0,0.0003166,27]
[319432290,1710736295520,-5000.0,0.0003166,54]
[319432291,1710736295531,-5000.0,0.0003166,53]
[319432292,1710736295541,-5000.0,0.0003166,57]
[319432293,1710736295552,-5000.0,0.0003166,60]
[319432294,1710736295562,-5000.0,0.0003166,19]
[319432295,1710736295572,-5000.0,0.0003166,17]
[319432296,1710736295582,-5000.0,0.0003166,16]
[319432297,1710736295593,-5000.0,0.0003166,15]
[319432298,1710736295605,-5000.0,0.0003166,63]
[319432299,1710736295615,-5000.0,0.0003166,65]
[319432300,1710736295625,-170.67539672,0.000317,30]
[319432301,1710736295636,-156.63817778,0.00031722,7]
[319432302,1710736295646,-1006.74,0.0003173,2]
[319432303,1710736295656,-100000.0,0.00031755,4]
[319432304,1710736295872,-5252.441717,0.00031758,2]
[319432305,1710736295883,-202.109937,0.00031758,2]
[319432306,1710736295893,-1480.822512,0.00031758,2]
[319432307,1710736295903,-11610.195174,0.00031758,2]
[319432308,1710736295914,-151.31149,0.00031758,2]
[319432309,1710736295924,-1000.0,0.0003178,10]
[319432310,1710736295933,-500.0,0.0003178,4]
[319432311,1710736295943,-500.0,0.0003178,4]
[319432312,1710736295953,-532.82938452,0.0003178,4]
[319432313,1710736295963,-500.0,0.0003178,4]
[319432314,1710736295973,-500.0,0.0003178,4]
[319432315,1710736295983,-500.0,0.0003178,4]
[319432316,1710736295994,-500.0,0.0003178,4]
[319432317,1710736296004,-500.0,0.0003178,4]
[319432318,1710736296014,-500.0,0.0003178,4]
[319432319,1710736296025,-500.0,0.0003178,4]
[319432320,1710736296035,-500.0,0.0003178,4]
[319432321,1710736296045,-161.58075314,0.0003178,4]
[319432322,1710736296055,-500.0,0.0003178,4]
[319432323,1710736296065,-224.17223704,0.0003178,4]
[319432324,1710736296075,-500.0,0.0003178,4]
[319432325,1710736296085,-365.78163085,0.0003178,120]
[319432326,1710736296095,-500.0,0.0003178,4]
[319432327,1710736296106,-500.0,0.0003178,4]
[319432328,1710736296116,-500.0,0.0003178,4]
[319432329,1710736296126,-500.0,0.0003178,4]
[319432330,1710736296137,-500.0,0.0003178,4]
[319432331,1710736296147,-500.0,0.0003178,4]
[319432332,1710736296157,-500.0,0.0003178,4]
[319432333,1710736296167,-500.0,0.0003178,4]
[319432334,1710736296178,-401.17394274,0.0003178,4]
[319432335,1710736296189,-500.0,0.0003178,4]
[319432336,1710736296200,-500.0,0.0003178,4]
[319432337,1710736296210,-500.0,0.0003178,4]
[319432338,1710736296220,-500.0,0.0003178,4]
[319432339,1710736296230,-500.0,0.0003178,4]
[319432340,1710736296240,-500.0,0.0003178,4]
[319432341,1710736296252,-387.9403715,0.0003178,4]
[319432342,1710736296263,-892.35,0.0003178,4]
[319432343,1710736296273,-500.0,0.0003178,4]
[319432344,1710736296283,-588.99,0.0003178,4]
[319432345,1710736296293,-500.0,0.0003178,4]
[319432346,1710736296303,-500.0,0.0003178,4]
[319432347,1710736296314,-500.0,0.0003178,4]
[319432348,1710736296323,-500.0,0.0003178,4]
[319432349,1710736296333,-500.0,0.0003178,4]
[319432350,1710736296343,-500.0,0.0003178,4]
[319432351,1710736296353,-500.0,0.0003178,4]
[319432352,1710736296363,-500.0,0.0003178,4]
[319432353,1710736296373,-500.0,0.0003178,4]
[319432354,1710736296383,-752.67,0.0003178,4]